[Event "Early-Titled-Tuesday-Blitz-February-20-2024"]
[Site "Chess.com"]
[Date "2024.02.20"]
[Round "11"]
[White "Cubitas"]
[Black "Licancabur"]
[Result "0-1"]
[WhiteElo "2636"]
[BlackElo "2457"]
[TimeControl "180+1"]
[EndTime "10:10:02 PST"]
[Termination "Licancabur won by checkmate"]

1. e4 {[%clk 0:03:00.9]} 1... Nf6 {[%clk 0:02:59.5]} 2. e5 {[%clk 0:03:00.7]}
2... Nd5 {[%clk 0:03:00]} 3. d4 {[%clk 0:03:00.8]} 3... d6 {[%clk 0:03:00.4]} 4.
c4 {[%clk 0:03:01]} 4... Nb6 {[%clk 0:03:00.3]} 5. exd6 {[%clk 0:02:59.8]} 5...
cxd6 {[%clk 0:03:00.2]} 6. Nc3 {[%clk 0:02:57.1]} 6... g6 {[%clk 0:03:00.2]} 7.
a4 {[%clk 0:02:56.4]} 7... a5 {[%clk 0:02:53.5]} 8. c5 {[%clk 0:02:56.6]} 8...
dxc5 {[%clk 0:02:48.1]} 9. Bb5+ {[%clk 0:02:56.9]} 9... N6d7 {[%clk 0:02:46.7]}
10. dxc5 {[%clk 0:02:54.4]} 10... Bg7 {[%clk 0:02:45.7]} 11. Be3 {[%clk
0:02:52.1]} 11... O-O {[%clk 0:02:43.9]} 12. Nf3 {[%clk 0:02:51.6]} 12... Nc6
{[%clk 0:02:39.1]} 13. Qb3 {[%clk 0:02:38]} 13... Nb4 {[%clk 0:02:30.4]} 14. Rd1
{[%clk 0:02:30.8]} 14... Qc7 {[%clk 0:02:29.6]} 15. Nd5 {[%clk 0:01:57.6]} 15...
Nxd5 {[%clk 0:02:27.9]} 16. Qxd5 {[%clk 0:01:58.5]} 16... Nf6 {[%clk 0:02:14.5]}
17. Qe5 {[%clk 0:01:50.7]} 17... Ne8 {[%clk 0:01:45.5]} 18. Qxc7 {[%clk
0:01:35.9]} 18... Nxc7 {[%clk 0:01:44.7]} 19. Bd4 {[%clk 0:01:34.2]} 19... Nxb5
{[%clk 0:01:33.4]} 20. Bxg7 {[%clk 0:01:15.6]} 20... Kxg7 {[%clk 0:01:31.6]} 21.
axb5 {[%clk 0:01:15.6]} 21... Bg4 {[%clk 0:01:28.6]} 22. Rd4 {[%clk 0:00:49.8]}
22... Bxf3 {[%clk 0:01:27]} 23. gxf3 {[%clk 0:00:50.7]} 23... Rfc8 {[%clk
0:00:57.7]} 24. Rc4 {[%clk 0:00:27.6]} 24... a4 {[%clk 0:00:50.2]} 25. Kd2
{[%clk 0:00:24.4]} 25... Ra5 {[%clk 0:00:49.7]} 26. c6 {[%clk 0:00:20.9]} 26...
Rxb5 {[%clk 0:00:44.6]} 27. c7 {[%clk 0:00:20.3]} 27... Rxb2+ {[%clk 0:00:42.5]}
28. Kc3 {[%clk 0:00:20.4]} 28... Rb3+ {[%clk 0:00:39.6]} 29. Kc2 {[%clk
0:00:20.2]} 29... b5 {[%clk 0:00:24.9]} 30. Rc5 {[%clk 0:00:19.5]} 30... Rb4
{[%clk 0:00:24.4]} 31. Rd1 {[%clk 0:00:20]} 31... Rc4+ {[%clk 0:00:22.5]} 32.
Rxc4 {[%clk 0:00:20.5]} 32... bxc4 {[%clk 0:00:22.8]} 33. Rd7 {[%clk 0:00:20.1]}
33... Kf6 {[%clk 0:00:23]} 34. Kc3 {[%clk 0:00:19.3]} 34... Ke6 {[%clk
0:00:23.3]} 35. Rd8 {[%clk 0:00:19.8]} 35... Rxc7 {[%clk 0:00:23.2]} 36. Rh8
{[%clk 0:00:20.7]} 36... h5 {[%clk 0:00:22.2]} 37. Ra8 {[%clk 0:00:21]} 37...
Kf5 {[%clk 0:00:20.3]} 38. Rxa4 {[%clk 0:00:20.9]} 38... e5 {[%clk 0:00:20.6]}
39. Ra6 {[%clk 0:00:19.8]} 39... f6 {[%clk 0:00:20.7]} 40. h4 {[%clk 0:00:20]}
40... Rd7 {[%clk 0:00:15.8]} 41. Kxc4 {[%clk 0:00:19.6]} 41... Rd2 {[%clk
0:00:16.1]} 42. Ra3 {[%clk 0:00:17.4]} 42... Rxf2 {[%clk 0:00:16.2]} 43. Rd3
{[%clk 0:00:15.9]} 43... Rh2 {[%clk 0:00:15.6]} 44. Kd5 {[%clk 0:00:14.9]} 44...
Rxh4 {[%clk 0:00:15.5]} 45. Re3 {[%clk 0:00:15.8]} 45... Rd4+ {[%clk 0:00:14.8]}
46. Kc6 {[%clk 0:00:15.7]} 46... Rf4 {[%clk 0:00:14.4]} 47. Rd3 {[%clk
0:00:15.4]} 47... h4 {[%clk 0:00:13.5]} 48. Rd2 {[%clk 0:00:15.2]} 48... h3
{[%clk 0:00:12.8]} 49. Rh2 {[%clk 0:00:15.8]} 49... Rh4 {[%clk 0:00:12.8]} 50.
Kd6 {[%clk 0:00:16.6]} 50... Kf4 {[%clk 0:00:12.8]} 51. Ke6 {[%clk 0:00:17.5]}
51... Kxf3 {[%clk 0:00:13.2]} 52. Kxf6 {[%clk 0:00:17.6]} 52... Kg3 {[%clk
0:00:13.7]} 53. Rh1 {[%clk 0:00:17.4]} 53... h2 {[%clk 0:00:13.7]} 54. Kg5
{[%clk 0:00:17.9]} 54... Rh8 {[%clk 0:00:13.4]} 55. Kxg6 {[%clk 0:00:17.7]}
55... Kg2 {[%clk 0:00:13.8]} 56. Ra1 {[%clk 0:00:17.9]} 56... h1=Q {[%clk
0:00:11.7]} 57. Ra2+ {[%clk 0:00:18.8]} 57... Kf3 {[%clk 0:00:10.5]} 58. Ra3+
{[%clk 0:00:19.7]} 58... Ke4 {[%clk 0:00:10.7]} 59. Re3+ {[%clk 0:00:19.9]}
59... Kxe3 {[%clk 0:00:10.3]} 60. Kg5 {[%clk 0:00:19.9]} 60... Qg2+ {[%clk
0:00:10.4]} 61. Kf6 {[%clk 0:00:20]} 61... Qf3+ {[%clk 0:00:10.3]} 62. Ke7
{[%clk 0:00:19.3]} 62... Qc6 {[%clk 0:00:09.2]} 63. Kf7 {[%clk 0:00:18.9]} 63...
Rh7+ {[%clk 0:00:09.4]} 64. Kg8 {[%clk 0:00:19]} 64... Qg6+ {[%clk 0:00:09.6]}
65. Kf8 {[%clk 0:00:19.5]} 65... Qf7# {[%clk 0:00:09.6]} 0-1

[Event "Early-Titled-Tuesday-Blitz-February-20-2024"]
[Site "Chess.com"]
[Date "2024.02.20"]
[Round "11"]
[White "Bkmzzzzz"]
[Black "RantomOpening"]
[Result "0-1"]
[WhiteElo "2426"]
[BlackElo "2555"]
[TimeControl "180+1"]
[EndTime "10:10:04 PST"]
[Termination "RantomOpening won by resignation"]

1. e4 {[%clk 0:03:00.9]} 1... c5 {[%clk 0:03:00.2]} 2. Nf3 {[%clk 0:02:59.5]}
2... e6 {[%clk 0:03:00.6]} 3. d3 {[%clk 0:02:59.7]} 3... Nc6 {[%clk 0:03:00.2]}
4. g3 {[%clk 0:03:00.2]} 4... d5 {[%clk 0:02:59]} 5. Nbd2 {[%clk 0:03:00]} 5...
Nf6 {[%clk 0:02:59.4]} 6. Bg2 {[%clk 0:03:00.4]} 6... Be7 {[%clk 0:02:59.7]} 7.
O-O {[%clk 0:03:00.9]} 7... O-O {[%clk 0:03:00.1]} 8. e5 {[%clk 0:03:01]} 8...
Nd7 {[%clk 0:03:00.2]} 9. Re1 {[%clk 0:03:01.6]} 9... Qc7 {[%clk 0:03:00.6]} 10.
Qe2 {[%clk 0:03:01.3]} 10... b5 {[%clk 0:03:01]} 11. Nf1 {[%clk 0:03:00.2]}
11... c4 {[%clk 0:03:01.3]} 12. h4 {[%clk 0:02:59.8]} 12... cxd3 {[%clk
0:03:01.1]} 13. cxd3 {[%clk 0:02:59.4]} 13... Nb4 {[%clk 0:03:01]} 14. Bf4
{[%clk 0:02:50.1]} 14... Qc2 {[%clk 0:02:54.7]} 15. Nd4 {[%clk 0:02:11.8]} 15...
Qxd3 {[%clk 0:02:51.9]} 16. Nxb5 {[%clk 0:02:05.4]} 16... Bb7 {[%clk 0:02:31]}
17. a3 {[%clk 0:01:47]} 17... Qxe2 {[%clk 0:02:28.3]} 18. Rxe2 {[%clk
0:01:47.9]} 18... Nd3 {[%clk 0:02:27.2]} 19. Nc3 {[%clk 0:01:15.1]} 19... Nxf4
{[%clk 0:02:18.2]} 20. gxf4 {[%clk 0:01:14.7]} 20... Nc5 {[%clk 0:02:18.1]} 21.
h5 {[%clk 0:01:12.6]} 21... Ba6 {[%clk 0:02:17.9]} 22. Ree1 {[%clk 0:01:09.6]}
22... Nd3 {[%clk 0:02:17.4]} 23. Reb1 {[%clk 0:01:08.8]} 23... Bc5 {[%clk
0:02:16.7]} 24. Ne3 {[%clk 0:01:03.8]} 24... d4 {[%clk 0:02:12.5]} 25. Ne4
{[%clk 0:01:03.1]} 25... dxe3 {[%clk 0:02:12.1]} 26. Nxc5 {[%clk 0:01:02.8]}
26... exf2+ {[%clk 0:02:04.2]} 27. Kf1 {[%clk 0:01:02.8]} 27... Nxc5+ {[%clk
0:02:03.4]} 28. Kxf2 {[%clk 0:01:03.7]} 28... Rad8 {[%clk 0:02:02]} 29. b4
{[%clk 0:01:02.4]} 29... Nd3+ {[%clk 0:02:01.8]} 30. Ke3 {[%clk 0:01:02.3]}
30... Rc8 {[%clk 0:01:33.5]} 31. b5 {[%clk 0:00:33.9]} 31... Nc5 {[%clk
0:01:10.6]} 32. bxa6 {[%clk 0:00:33.5]} 32... f6 {[%clk 0:01:03.7]} 33. Bb7
{[%clk 0:00:33]} 33... Rcd8 {[%clk 0:01:01.4]} 34. Rc1 {[%clk 0:00:29.3]} 34...
Nb3 {[%clk 0:01:00.8]} 35. Rab1 {[%clk 0:00:26.4]} 35... Nxc1 {[%clk 0:01:01.1]}
36. Rxc1 {[%clk 0:00:27.3]} 36... fxe5 {[%clk 0:01:00.9]} 37. fxe5 {[%clk
0:00:28.2]} 37... Rf5 {[%clk 0:00:57.7]} 38. Ke4 {[%clk 0:00:28]} 38... Rxh5
{[%clk 0:00:56.7]} 39. Rc7 {[%clk 0:00:28]} 39... Rh4+ {[%clk 0:00:55.7]} 40.
Ke3 {[%clk 0:00:27.1]} 40... Ra4 {[%clk 0:00:51.4]} 41. Bc8 {[%clk 0:00:26.6]}
41... Rxa3+ {[%clk 0:00:50.6]} 42. Ke4 {[%clk 0:00:25.9]} 42... Rxc8 {[%clk
0:00:37.3]} 43. Rxc8+ {[%clk 0:00:25.7]} 43... Kf7 {[%clk 0:00:38.2]} 44. Rc7+
{[%clk 0:00:26.4]} 44... Kg6 {[%clk 0:00:38.9]} 45. Rxa7 {[%clk 0:00:27.1]}
45... h5 {[%clk 0:00:38.8]} 46. Ra8 {[%clk 0:00:24.5]} 46... h4 {[%clk
0:00:38.6]} 47. a7 {[%clk 0:00:25.1]} 47... h3 {[%clk 0:00:38.7]} 48. Rh8 {[%clk
0:00:25.5]} 48... Ra4+ {[%clk 0:00:36.7]} 49. Kf3 {[%clk 0:00:23.4]} 49... Rxa7
{[%clk 0:00:37]} 50. Kg4 {[%clk 0:00:23.9]} 50... Ra3 {[%clk 0:00:35.8]} 51. Re8
{[%clk 0:00:22.8]} 51... Kf7 {[%clk 0:00:20]} 52. Rh8 {[%clk 0:00:22.4]} 52...
Rc3 {[%clk 0:00:18.9]} 53. Kg5 {[%clk 0:00:20.5]} 53... Rf3 {[%clk 0:00:18.1]}
54. Kg4 {[%clk 0:00:20.7]} 54... Rf5 {[%clk 0:00:18.1]} 55. Rxh3 {[%clk
0:00:19.9]} 55... Rxe5 {[%clk 0:00:18.4]} 56. Ra3 {[%clk 0:00:20.6]} 56... Rf5
{[%clk 0:00:17.7]} 57. Ra8 {[%clk 0:00:19.3]} 57... Rf1 {[%clk 0:00:12.3]} 58.
Kg5 {[%clk 0:00:17.5]} 58... Rg1+ {[%clk 0:00:10.4]} 59. Kf4 {[%clk 0:00:17.8]}
59... g5+ {[%clk 0:00:10.9]} 60. Ke5 {[%clk 0:00:17.3]} 60... Re1+ {[%clk
0:00:11]} 61. Kd4 {[%clk 0:00:17.6]} 61... g4 {[%clk 0:00:10.4]} 62. Ra3 {[%clk
0:00:17.6]} 62... Kf6 {[%clk 0:00:10.5]} 63. Rg3 {[%clk 0:00:18.1]} 63... Kg5
{[%clk 0:00:10.7]} 64. Kd3 {[%clk 0:00:18.2]} 64... Kh4 {[%clk 0:00:11.1]} 65.
Rg2 {[%clk 0:00:18.6]} 65... g3 {[%clk 0:00:11.4]} 66. Kd2 {[%clk 0:00:17.7]}
66... Re5 {[%clk 0:00:11.8]} 67. Kd3 {[%clk 0:00:18.3]} 67... Kh3 {[%clk
0:00:11.9]} 68. Rg1 {[%clk 0:00:18.7]} 68... g2 {[%clk 0:00:12.3]} 69. Rd1
{[%clk 0:00:19.1]} 69... Rd5+ {[%clk 0:00:12.2]} 70. Ke2 {[%clk 0:00:18.8]}
70... Rxd1 {[%clk 0:00:13.1]} 71. Kxd1 {[%clk 0:00:19.7]} 71... g1=Q+ {[%clk
0:00:13.5]} 0-1

[Event "Early-Titled-Tuesday-Blitz-February-20-2024"]
[Site "Chess.com"]
[Date "2024.02.20"]
[Round "11"]
[White "ProChessWICTH"]
[Black "NewYearGirl"]
[Result "1/2-1/2"]
[WhiteElo "2469"]
[BlackElo "2359"]
[TimeControl "180+1"]
[EndTime "10:10:12 PST"]
[Termination "Game drawn - insufficient material"]

1. e4 {[%clk 0:02:59]} 1... c5 {[%clk 0:02:59.7]} 2. Nf3 {[%clk 0:02:46.3]} 2...
d6 {[%clk 0:02:59.7]} 3. c3 {[%clk 0:02:45.7]} 3... Nf6 {[%clk 0:02:58.1]} 4. h3
{[%clk 0:02:45.8]} 4... Nc6 {[%clk 0:02:56.5]} 5. Bd3 {[%clk 0:02:45.2]} 5... c4
{[%clk 0:02:53.9]} 6. Bxc4 {[%clk 0:02:41.8]} 6... Nxe4 {[%clk 0:02:53.9]} 7.
O-O {[%clk 0:02:42.3]} 7... g6 {[%clk 0:02:50.2]} 8. Re1 {[%clk 0:02:41.3]} 8...
d5 {[%clk 0:02:50.4]} 9. Bb3 {[%clk 0:02:39]} 9... Bg7 {[%clk 0:02:49.9]} 10. d3
{[%clk 0:02:38]} 10... Nc5 {[%clk 0:02:49.2]} 11. Bc2 {[%clk 0:02:36.7]} 11...
d4 {[%clk 0:02:40.9]} 12. c4 {[%clk 0:02:26.6]} 12... O-O {[%clk 0:02:37]} 13.
a3 {[%clk 0:02:24.7]} 13... a5 {[%clk 0:02:37.1]} 14. Nbd2 {[%clk 0:02:21.1]}
14... f5 {[%clk 0:02:28.1]} 15. Rb1 {[%clk 0:02:19.4]} 15... a4 {[%clk
0:02:27.7]} 16. Nf1 {[%clk 0:02:13.7]} 16... Na5 {[%clk 0:02:25.7]} 17. Bxa4
{[%clk 0:01:55.3]} 17... Nxa4 {[%clk 0:02:17.6]} 18. Qxa4 {[%clk 0:01:56.2]}
18... Bd7 {[%clk 0:02:17.7]} 19. Qb4 {[%clk 0:01:43.6]} 19... Bc6 {[%clk
0:02:09.2]} 20. Ne5 {[%clk 0:01:36.3]} 20... Qd6 {[%clk 0:02:00.9]} 21. Qxd6
{[%clk 0:01:34.1]} 21... exd6 {[%clk 0:02:00.6]} 22. Nxc6 {[%clk 0:01:34.2]}
22... bxc6 {[%clk 0:01:56.6]} 23. b4 {[%clk 0:01:26.9]} 23... Nb7 {[%clk
0:01:57.2]} 24. Re7 {[%clk 0:01:23.9]} 24... Rf7 {[%clk 0:01:55.2]} 25. Rxf7
{[%clk 0:01:22]} 25... Kxf7 {[%clk 0:01:56.1]} 26. Bb2 {[%clk 0:01:22.2]} 26...
Re8 {[%clk 0:01:43.3]} 27. a4 {[%clk 0:00:50.3]} 27... c5 {[%clk 0:01:43.4]} 28.
b5 {[%clk 0:00:26]} 28... Re2 {[%clk 0:01:43.2]} 29. g3 {[%clk 0:00:13.4]} 29...
Bf6 {[%clk 0:01:40.8]} 30. Kg2 {[%clk 0:00:13.3]} 30... Bd8 {[%clk 0:01:38]} 31.
Kf3 {[%clk 0:00:13.1]} 31... Rc2 {[%clk 0:01:38.3]} 32. Bc1 {[%clk 0:00:09.4]}
32... Ra2 {[%clk 0:01:37]} 33. Nd2 {[%clk 0:00:06]} 33... Rxa4 {[%clk
0:01:37.1]} 34. Nb3 {[%clk 0:00:06.7]} 34... Ra2 {[%clk 0:01:35.3]} 35. h4
{[%clk 0:00:06.5]} 35... Ke6 {[%clk 0:01:26.8]} 36. Rb2 {[%clk 0:00:06.4]} 36...
Rxb2 {[%clk 0:01:23]} 37. Bxb2 {[%clk 0:00:07.3]} 37... d5 {[%clk 0:01:23.9]}
38. Ba3 {[%clk 0:00:04.3]} 38... dxc4 {[%clk 0:01:21.8]} 39. dxc4 {[%clk
0:00:05.2]} 39... Kd6 {[%clk 0:01:19]} 40. Nxd4 {[%clk 0:00:04.4]} 40... Na5
{[%clk 0:01:17.8]} 41. Nc6 {[%clk 0:00:03.4]} 41... Nxc4 {[%clk 0:01:09.9]} 42.
Bc1 {[%clk 0:00:02]} 42... Bb6 {[%clk 0:01:04.8]} 43. Kf4 {[%clk 0:00:02.7]}
43... Na3 {[%clk 0:01:04.7]} 44. Bxa3 {[%clk 0:00:02.3]} 44... Kd5 {[%clk
0:01:04.9]} 45. Bc1 {[%clk 0:00:02.9]} 45... c4 {[%clk 0:01:05]} 46. Ne5 {[%clk
0:00:03.1]} 46... Bxf2 {[%clk 0:01:04.9]} 47. Nf3 {[%clk 0:00:02.6]} 47... Bb6
{[%clk 0:01:00.6]} 48. Bb2 {[%clk 0:00:02.8]} 48... Kc5 {[%clk 0:01:00.6]} 49.
Bc3 {[%clk 0:00:03.4]} 49... Kxb5 {[%clk 0:01:00.9]} 50. Ke5 {[%clk 0:00:03.7]}
50... Bf2 {[%clk 0:01:00]} 51. Kf4 {[%clk 0:00:03.8]} 51... Ka4 {[%clk
0:00:59.9]} 52. Nd2 {[%clk 0:00:03.3]} 52... Kb5 {[%clk 0:00:59.4]} 53. Kf3
{[%clk 0:00:03.2]} 53... Be1 {[%clk 0:00:59.1]} 54. Nb1 {[%clk 0:00:03.3]} 54...
Bxc3 {[%clk 0:00:56.3]} 55. Nxc3+ {[%clk 0:00:04.2]} 55... Kb4 {[%clk
0:00:56.8]} 56. Nd5+ {[%clk 0:00:04.6]} 56... Kc5 {[%clk 0:00:57.3]} 57. Ne3
{[%clk 0:00:05.1]} 57... c3 {[%clk 0:00:56.4]} 58. Ke2 {[%clk 0:00:05.1]} 58...
Kd4 {[%clk 0:00:56.5]} 59. Nc2+ {[%clk 0:00:05.7]} 59... Ke4 {[%clk 0:00:56.5]}
60. Nb4 {[%clk 0:00:05.8]} 60... h6 {[%clk 0:00:56]} 61. Nc2 {[%clk 0:00:03]}
61... g5 {[%clk 0:00:55.9]} 62. hxg5 {[%clk 0:00:03.6]} 62... hxg5 {[%clk
0:00:56.3]} 63. Na3 {[%clk 0:00:02.5]} 63... Kd4 {[%clk 0:00:52.3]} 64. Nc2+
{[%clk 0:00:02]} 64... Ke4 {[%clk 0:00:51.9]} 65. Ne1 {[%clk 0:00:02.7]} 65...
f4 {[%clk 0:00:50.3]} 66. g4 {[%clk 0:00:03]} 66... f3+ {[%clk 0:00:39.5]} 67.
Nxf3 {[%clk 0:00:03]} 67... c2 {[%clk 0:00:40]} 68. Nd2+ {[%clk 0:00:03.1]}
68... Kf4 {[%clk 0:00:40.3]} 69. Nb3 {[%clk 0:00:03.2]} 69... Kxg4 {[%clk
0:00:40.4]} 70. Kd2 {[%clk 0:00:03.6]} 70... Kf3 {[%clk 0:00:32.5]} 71. Kxc2
{[%clk 0:00:03.7]} 71... g4 {[%clk 0:00:33.2]} 72. Nd2+ {[%clk 0:00:02.9]} 72...
Ke3 {[%clk 0:00:32.8]} 73. Kd1 {[%clk 0:00:03]} 73... Kf2 {[%clk 0:00:32.4]} 74.
Ne4+ {[%clk 0:00:03]} 74... Kf1 {[%clk 0:00:32.9]} 75. Kd2 {[%clk 0:00:02.8]}
75... Kg2 {[%clk 0:00:33.1]} 76. Ke3 {[%clk 0:00:03.2]} 76... g3 {[%clk
0:00:33]} 77. Nxg3 {[%clk 0:00:03.5]} 1/2-1/2

[Event "Early-Titled-Tuesday-Blitz-February-20-2024"]
[Site "Chess.com"]
[Date "2024.02.20"]
[Round "11"]
[White "Chesstiger64"]
[Black "PavelChernomordik"]
[Result "1-0"]
[WhiteElo "2328"]
[BlackElo "2437"]
[TimeControl "180+1"]
[EndTime "10:10:26 PST"]
[Termination "Chesstiger64 won on time"]

1. d4 {[%clk 0:02:56.2]} 1... g6 {[%clk 0:02:59.8]} 2. c4 {[%clk 0:02:54.9]}
2... Bg7 {[%clk 0:02:59.7]} 3. Nc3 {[%clk 0:02:54.9]} 3... d6 {[%clk 0:02:59.5]}
4. e4 {[%clk 0:02:53.8]} 4... c6 {[%clk 0:02:54.9]} 5. f4 {[%clk 0:02:53.2]}
5... a6 {[%clk 0:02:54.5]} 6. Nf3 {[%clk 0:02:53.2]} 6... b5 {[%clk 0:02:54.2]}
7. Bd3 {[%clk 0:02:52.2]} 7... Bg4 {[%clk 0:02:52.6]} 8. Be3 {[%clk 0:02:50.9]}
8... Qb6 {[%clk 0:02:42]} 9. Be2 {[%clk 0:02:33.5]} 9... e5 {[%clk 0:02:26.6]}
10. Qd2 {[%clk 0:02:29.7]} 10... Bxf3 {[%clk 0:02:24.6]} 11. dxe5 {[%clk
0:02:29.5]} 11... Qa5 {[%clk 0:02:16.3]} 12. gxf3 {[%clk 0:02:20.2]} 12... dxe5
{[%clk 0:02:08.3]} 13. fxe5 {[%clk 0:02:20.3]} 13... Bxe5 {[%clk 0:02:06.9]} 14.
Bd4 {[%clk 0:02:20.6]} 14... Qc7 {[%clk 0:02:06.2]} 15. Bxe5 {[%clk 0:02:06.5]}
15... Qxe5 {[%clk 0:02:01.1]} 16. O-O-O {[%clk 0:02:07.1]} 16... Qe7 {[%clk
0:01:57]} 17. e5 {[%clk 0:01:51.3]} 17... Nd7 {[%clk 0:01:47.3]} 18. f4 {[%clk
0:01:50.8]} 18... Nh6 {[%clk 0:01:40.8]} 19. Bf3 {[%clk 0:01:48.2]} 19... Rc8
{[%clk 0:01:38.6]} 20. h4 {[%clk 0:01:41.8]} 20... Nc5 {[%clk 0:01:31]} 21. h5
{[%clk 0:01:41]} 21... Nf5 {[%clk 0:01:30.2]} 22. Ne4 {[%clk 0:01:34.9]} 22...
Nxe4 {[%clk 0:01:25.6]} 23. Bxe4 {[%clk 0:01:35.8]} 23... Ng3 {[%clk 0:01:25.3]}
24. Rhe1 {[%clk 0:01:27.3]} 24... Nxe4 {[%clk 0:01:21.1]} 25. Rxe4 {[%clk
0:01:26.2]} 25... O-O {[%clk 0:01:20]} 26. f5 {[%clk 0:01:22.7]} 26... Rcd8
{[%clk 0:01:17.1]} 27. Qf4 {[%clk 0:00:44.6]} 27... Rxd1+ {[%clk 0:01:15.7]} 28.
Kxd1 {[%clk 0:00:44.6]} 28... g5 {[%clk 0:00:55.3]} 29. f6 {[%clk 0:00:26.3]}
29... gxf4 {[%clk 0:00:54.1]} 30. fxe7 {[%clk 0:00:25.3]} 30... Re8 {[%clk
0:00:53.1]} 31. Rxf4 {[%clk 0:00:25.4]} 31... Rxe7 {[%clk 0:00:52.8]} 32. cxb5
{[%clk 0:00:25.3]} 32... axb5 {[%clk 0:00:51.9]} 33. Rf5 {[%clk 0:00:25]} 33...
Kg7 {[%clk 0:00:50.3]} 34. Kc2 {[%clk 0:00:23.4]} 34... Re6 {[%clk 0:00:45.4]}
35. Kd3 {[%clk 0:00:20.5]} 35... Kf8 {[%clk 0:00:40.2]} 36. Kd4 {[%clk 0:00:16]}
36... Ke7 {[%clk 0:00:39.9]} 37. Kc5 {[%clk 0:00:15.3]} 37... h6 {[%clk
0:00:35.7]} 38. b3 {[%clk 0:00:15]} 38... Ke8 {[%clk 0:00:32.8]} 39. a4 {[%clk
0:00:14.8]} 39... bxa4 {[%clk 0:00:32.4]} 40. bxa4 {[%clk 0:00:15.7]} 40... Re7
{[%clk 0:00:29.2]} 41. Kxc6 {[%clk 0:00:14.8]} 41... Ra7 {[%clk 0:00:28.2]} 42.
Kb5 {[%clk 0:00:14.8]} 42... Ke7 {[%clk 0:00:22.6]} 43. a5 {[%clk 0:00:15.2]}
43... Ke6 {[%clk 0:00:21.5]} 44. Rf6+ {[%clk 0:00:15.6]} 44... Kxe5 {[%clk
0:00:21.4]} 45. Rxh6 {[%clk 0:00:16.5]} 45... f5 {[%clk 0:00:19.7]} 46. a6
{[%clk 0:00:16.9]} 46... f4 {[%clk 0:00:19.3]} 47. Kb6 {[%clk 0:00:17.6]} 47...
Rf7 {[%clk 0:00:15.5]} 48. a7 {[%clk 0:00:17]} 48... Rf8 {[%clk 0:00:10.8]} 49.
Rh7 {[%clk 0:00:15.6]} 49... f3 {[%clk 0:00:09.5]} 50. Rf7 {[%clk 0:00:13.9]}
50... Rxf7 {[%clk 0:00:08.1]} 51. a8=Q {[%clk 0:00:14]} 51... Rf6+ {[%clk
0:00:07.3]} 52. Kc5 {[%clk 0:00:11.7]} 52... f2 {[%clk 0:00:08]} 53. Qb8+ {[%clk
0:00:10.4]} 53... Kf5 {[%clk 0:00:06.2]} 54. Qc8+ {[%clk 0:00:10.9]} 54... Kg5
{[%clk 0:00:05.9]} 55. Qg8+ {[%clk 0:00:11]} 55... Kxh5 {[%clk 0:00:05.2]} 56.
Qh7+ {[%clk 0:00:11.2]} 56... Kg5 {[%clk 0:00:05]} 57. Qg7+ {[%clk 0:00:11.5]}
57... Kf5 {[%clk 0:00:04.9]} 58. Qh7+ {[%clk 0:00:11.4]} 58... Ke6 {[%clk
0:00:04.2]} 59. Qh3+ {[%clk 0:00:11.1]} 59... Ke5 {[%clk 0:00:04.2]} 60. Qf1
{[%clk 0:00:11.8]} 60... Ke4 {[%clk 0:00:04]} 61. Kc4 {[%clk 0:00:12.1]} 61...
Ke3 {[%clk 0:00:03.8]} 62. Kc3 {[%clk 0:00:12.3]} 62... Rf4 {[%clk 0:00:03.6]}
63. Kc2 {[%clk 0:00:12.1]} 63... Kf3 {[%clk 0:00:02.7]} 64. Qh3+ {[%clk
0:00:11.1]} 64... Ke2 {[%clk 0:00:02.3]} 65. Qd3+ {[%clk 0:00:11]} 1-0